Workbook

Sheet Índice
A1: Modelo Económico Forestal
A2: Algarrobo en Chaco
C4: Nivel de intervención
C5: Básico | D5: Avanzado | E5: Experto
A6: Tablero | B6: Tablero de comando | C6: Editar celdas indicadas para simular diferentes escenarios de precios y variables de interés. Calcular sensibilidades y series de forma manual. | D6: Agregar variantes de características del modelo al tablero de comando, tanto en ingresos de datos como en resultados. Automatizar variaciones sistemáticas con macros. Calcular sensibilidades y series complejas. | E6: Reformular a la medida de las necesidades del caso.
A7: modelo | B7: Estructura temporal de ingresos y egresos económicos, basada en el modelo técnico. | C7: Solo lectura | D7: Modificar parámetros o estructura temporal del modelo sin alterar las celdas relacionadas con el tablero de comando. | E7: Reformular el modelo en aspectos más estructurales; agregar otros indicadores de interés al tablero de comando; automatizar variantes del modelo.
A8: coeficientes | B8: Coeficientes técnicos del modelo técnico forestal, que cuantifican los rendimientos y requerimientos de cada tarea productiva. | C8: Solo lectura | D8: Solo lectura | E8: Modificar coeficientes para representar modelos con diferentes determinantes técnicas.
A9: precios | B9: Conjunto de precios y otras variables de contexto que hacen a las condiciones económicas del modelo forestal. | C9: Solo lectura | D9: Modificar precios específicos que no dependan del tablero de comando, o modificar la relación entre este y determinados precios | E9: Crear o modificar relaciones de dependencia entre precios.
A10: ANR | B10: Parámetros para computar el efecto del ANR que prevé la Ley N° 25.080 y modificatorias sobre el modelo. | C10: Seleccionar incluir o no incluir los aportes en el cálculo del modelo. | D10: Actualizar o modificar los montos. | E10: Incorporar otros instrumentos de apoyo o gravámenes; modificar su inserción en la estructura temporal del modelo.
A12: Esta planilla de cálculo fue elaborada como actividad del Proyecto Estructural INTA - I016: Desarrollo de una silvicultura sostenible de bosques implantados de alta productividad.
A13: Revisión: | B13: noviembre 2021
A15: Equipo técnico:
A16: Demián Olemberg1, Lorena Pernochi1, Marcos Atanasio1, Lucas Vera2, Walter Acosta3, Javier Aguirre4, Walter Lezcano5
A17: 1 Instituto Nacional de Tecnología Agropecuaria (INTA)
A18: 2 Dirección Nacional de Desarrollo Foresto Industrial - Ministerio de Agricultura Ganadería y Pesca de la Nación (DNDFI-MAGYP)
A19: 3 Instituto de Investigación Forestal y Agropecuaria (IIFA)
A20: 4 Asociación de Productores Forestales del Chaco
A21: 5 Consejo Profesional de Ciencias Forestales del Chaco (CPCFCh).
A23: Agradecimientos:
A24: Mesa de Bosques Cultivados del Chaco.
A26: Documento del modelo técnico-económico:
A27: (pendiente de publicación)
A29: Contacto/consultas:
A30: olemberg.demian@inta.gob.ar

Sheet Tablero
A1: Tablero de comando
D2: Año base 2020 | F2: Escenarios alternativos:
A3: Tasa (%) | B3: 0.05
A4: Tipo de cambio ($/USD) | B4: 63 | D4: 63
A5: JEQ ($/jornal) | B5: 1759 | D5: 1759
A6: GO ($/l) | B6: 62 | D6: 62
A7: HMEQ ($/h) | B7: 100 | D7: 100
A8: PLANT ($/plantín) | B8: 34.28489153 | D8: 34.28489153
A9: ANR | B9: NO
A10: Precio Madera ($/t) | B10: 4050.358913 | D10: 2300
A11: Rendimiento (t/ha) | B11: 60 | D11: 60
A12: VAN ($) | B12: =modelo!$M$5+NPV(tasa,modelo!$M$6:$M$30) -> 0
A13: TIR | B13: =IRR(modelo!$M$5:$M$30) -> 0.05
A15: Otros indicadores y cálculos
A16: Costo total bruto ($/ha) | B16: =SUM(modelo!$O$5:$O$30) -> 107833.1467
A17: Costo total actualizado ($/ha) | B17: =-NPV(tasa,modelo!$M$5:$M$29) -> 67780.73105
A18: Costo bruto implantación ($/ha) | B18: =-modelo!$N$7 -> 52158.23708
A19: Otros...

Sheet modelo
A1: Modelo: Estructura temporal de ingresos y egresos económicos
A3: VALORES ($) EXPRESADOS EN PESOS, PARA 1 HA
A4: Año | B4: JEQ | C4: GO | D4: HMEQ | E4: PLANT | F4: AGROQ | G4: AMORT | H4: IMP | I4: Subtotal | J4: Admin | K4: Egresos | L4: Ingresos | M4: FF | N4: FF acum. | O4: Costo
A5: 0 | B5: =coeficientes!$B$5+coeficientes!$B$6+coeficientes!$B$7+coeficientes!$B$8+coeficientes!$B$9+coeficientes!$B$15 -> 6.18 | C5: =coeficientes!$F$6+coeficientes!$F$8+coeficientes!$F$15 -> 22 | D5: =coeficientes!$E$6+coeficientes!$E$8+coeficientes!$E$15 -> 7.34 | E5: 550 | F5: =coeficientes!$D$10 -> 73.9998 | G5: =coeficientes!$B$22 -> 1164.112983 | H5: =precios!$B$7 -> 0 | I5: =B5*precios!$B$3+C5*precios!$B$4+D5*precios!$B$5+E5*precios!$B$6+F5+G5+H5 -> 33063.42313 | J5: =coeficientes!$B$23*modelo!$I$31/26 -> 198.4276614 | K5: =I5+J5 -> 33261.85079 | L5: =E5*precios!$B$10 -> 8250 | M5: =L5-K5 -> -25011.85079 | N5: =M5 -> -25011.85079 | O5: =IF(M6<0,0,-N5) -> 0
A6: 1 | B6: =coeficientes!$B$12+coeficientes!$B$13+coeficientes!$B$14+coeficientes!$B$15+coeficientes!$B$9 -> 5.3 | C6: =coeficientes!$F$14+coeficientes!$F$15 -> 35 | D6: =coeficientes!$E$14+coeficientes!$E$15 -> 11.67 | F6: =coeficientes!$D$11 -> 421.155 | G6: =coeficientes!$B$22 -> 1164.112983 | H6: =precios!$B$7 -> 0 | I6: =B6*precios!$B$3+C6*precios!$B$4+D6*precios!$B$5+E6*precios!$B$6+F6+G6+H6 -> 14244.96798 | J6: =coeficientes!$B$23*modelo!$I$31/26 -> 198.4276614 | K6: =I6+J6 -> 14443.39564 | L6: 0 | M6: =L6-K6 -> -14443.39564 | N6: =N5+M6 -> -39455.24643 | O6: =IF(M7<0,0,IF(N6<0,IF(-N6>SUM($O$5:O5),-N6-SUM($O$5:O5),0),0)) -> 0
A7: 2 | B7: =coeficientes!$B$13+coeficientes!$B$14+coeficientes!$B$15 -> 4.55 | C7: =coeficientes!$F$14+coeficientes!$F$15 -> 35 | D7: =coeficientes!$E$14+coeficientes!$E$15 -> 11.67 | G7: =coeficientes!$B$22 -> 1164.112983 | H7: =precios!$B$7 -> 0 | I7: =B7*precios!$B$3+C7*precios!$B$4+D7*precios!$B$5+E7*precios!$B$6+F7+G7+H7 -> 12504.56298 | J7: =coeficientes!$B$23*modelo!$I$31/26 -> 198.4276614 | K7: 12702.99064 | L7: 0 | M7: -12702.99064 | N7: =N6+M7 -> -52158.23708 | O7: =IF(M8<0,0,IF(N7<0,IF(-N7>SUM($O$5:O6),-N7-SUM($O$5:O6),0),0)) -> 0
A8: 3 | B8: =coeficientes!$B$13+coeficientes!$B$14+coeficientes!$B$15 -> 4.55 | C8: =coeficientes!$F$14+coeficientes!$F$15 -> 35 | D8: =coeficientes!$E$14+coeficientes!$E$15 -> 11.67 | G8: =coeficientes!$B$22 -> 1164.112983 | H8: =precios!$B$7 -> 0 | I8: =B8*precios!$B$3+C8*precios!$B$4+D8*precios!$B$5+E8*precios!$B$6+F8+G8+H8 -> 12504.56298 | J8: =coeficientes!$B$23*modelo!$I$31/26+precios!$B$17 -> 442.4276614 | K8: 12946.99064 | L8: =ANR!B4 -> 0 | M8: -12946.99064 | N8: -65105.22772 | O8: =IF(M9<0,0,IF(N8<0,IF(-N8>SUM($O$5:O7),-N8-SUM($O$5:O7),0),0)) -> 0
A9: 4 | B9: =coeficientes!$B$15+coeficientes!$B$16+coeficientes!$B$17 -> 2.35 | C9: =coeficientes!$F$15 -> 5 | D9: =coeficientes!$E$15 -> 1.67 | G9: =coeficientes!$B$22 -> 1164.112983 | H9: =precios!$B$7 -> 0 | I9: =B9*precios!$B$3+C9*precios!$B$4+D9*precios!$B$5+E9*precios!$B$6+F9+G9+H9 -> 5774.762983 | J9: =coeficientes!$B$23*modelo!$I$31/26 -> 198.4276614 | K9: 5973.190644 | L9: 0 | M9: -5973.190644 | N9: -71078.41836 | O9: =IF(M10<0,0,IF(N9<0,IF(-N9>SUM($O$5:O8),-N9-SUM($O$5:O8),0),0)) -> 0
A10: 5 | B10: =coeficientes!$B$15 -> 0.1 | C10: =coeficientes!$F$15 -> 5 | D10: =coeficientes!$E$15 -> 1.67 | G10: =coeficientes!$B$22 -> 1164.112983 | H10: =precios!$B$7 -> 0 | I10: =B10*precios!$B$3+C10*precios!$B$4+D10*precios!$B$5+E10*precios!$B$6+F10+G10+H10 -> 1817.012983 | J10: =coeficientes!$B$23*modelo!$I$31/26+precios!$B$18 -> 198.4276614 | K10: 2015.440644 | L10: 0 | M10: -2015.440644 | N10: -73093.85901 | O10: =IF(M11<0,0,IF(N10<0,IF(-N10>SUM($O$5:O9),-N10-SUM($O$5:O9),0),0)) -> 0
A11: 6 | B11: =coeficientes!$B$15 -> 0.1 | C11: =coeficientes!$F$15 -> 5 | D11: =coeficientes!$E$15 -> 1.67 | G11: =coeficientes!$B$22 -> 1164.112983 | H11: =precios!$B$7 -> 0 | I11: =B11*precios!$B$3+C11*precios!$B$4+D11*precios!$B$5+E11*precios!$B$6+F11+G11+H11 -> 1817.012983 | J11: =coeficientes!$B$23*modelo!$I$31/26 -> 198.4276614 | K11: 2015.440644 | L11: 0 | M11: -2015.440644 | N11: -75109.29965 | O11: =IF(M12<0,0,IF(N11<0,IF(-N11>SUM($O$5:O10),-N11-SUM($O$5:O10),0),0)) -> 0
A12: 7 | B12: =coeficientes!$B$15 -> 0.1 | C12: =coeficientes!$F$15 -> 5 | D12: =coeficientes!$E$15 -> 1.67 | G12: =coeficientes!$B$22 -> 1164.112983 | H12: =precios!$B$7 -> 0 | I12: =B12*precios!$B$3+C12*precios!$B$4+D12*precios!$B$5+E12*precios!$B$6+F12+G12+H12 -> 1817.012983 | J12: =coeficientes!$B$23*modelo!$I$31/26 -> 198.4276614 | K12: 2015.440644 | L12: 0 | M12: -2015.440644 | N12: -77124.7403 | O12: =IF(M13<0,0,IF(N12<0,IF(-N12>SUM($O$5:O11),-N12-SUM($O$5:O11),0),0)) -> 0
A13: 8 | B13: =coeficientes!$B$15+coeficientes!$B$17+coeficientes!$B$18 -> 3.35 | C13: =coeficientes!$F$15 -> 5 | D13: =coeficientes!$E$15 -> 1.67 | G13: =coeficientes!$B$22 -> 1164.112983 | H13: =precios!$B$7 -> 0 | I13: =B13*precios!$B$3+C13*precios!$B$4+D13*precios!$B$5+E13*precios!$B$6+F13+G13+H13 -> 7533.762983 | J13: =coeficientes!$B$23*modelo!$I$31/26 -> 198.4276614 | K13: 7732.190644 | L13: 0 | M13: -7732.190644 | N13: -84856.93094 | O13: =IF(M14<0,0,IF(N13<0,IF(-N13>SUM($O$5:O12),-N13-SUM($O$5:O12),0),0)) -> 0
A14: 9 | B14: =coeficientes!$B$15 -> 0.1 | C14: =coeficientes!$F$15 -> 5 | D14: =coeficientes!$E$15 -> 1.67 | G14: =coeficientes!$B$22 -> 1164.112983 | H14: =precios!$B$7 -> 0 | I14: =B14*precios!$B$3+C14*precios!$B$4+D14*precios!$B$5+E14*precios!$B$6+F14+G14+H14 -> 1817.012983 | J14: =coeficientes!$B$23*modelo!$I$31/26+precios!$B$19 -> 198.4276614 | K14: 2015.440644 | L14: 0 | M14: -2015.440644 | N14: -86872.37158 | O14: =IF(M15<0,0,IF(N14<0,IF(-N14>SUM($O$5:O13),-N14-SUM($O$5:O13),0),0)) -> 0
A15: 10 | B15: =coeficientes!$B$15+coeficientes!$B$19 -> 2.85 | C15: =coeficientes!$F$15 -> 5 | D15: =coeficientes!$E$15 -> 1.67 | G15: =coeficientes!$B$22 -> 1164.112983 | H15: =precios!$B$7 -> 0 | I15: =B15*precios!$B$3+C15*precios!$B$4+D15*precios!$B$5+E15*precios!$B$6+F15+G15+H15 -> 6654.262983 | J15: =coeficientes!$B$23*modelo!$I$31/26 -> 198.4276614 | K15: 6852.690644 | L15: 0 | M15: -6852.690644 | N15: -93725.06223 | O15: =IF(M16<0,0,IF(N15<0,IF(-N15>SUM($O$5:O14),-N15-SUM($O$5:O14),0),0)) -> 0
A16: 11 | B16: =coeficientes!$B$15 -> 0.1 | C16: =coeficientes!$F$15 -> 5 | D16: =coeficientes!$E$15 -> 1.67 | G16: =coeficientes!$B$22 -> 1164.112983 | H16: =precios!$B$7 -> 0 | I16: =B16*precios!$B$3+C16*precios!$B$4+D16*precios!$B$5+E16*precios!$B$6+F16+G16+H16 -> 1817.012983 | J16: =coeficientes!$B$23*modelo!$I$31/26+precios!$B$20 -> 198.4276614 | K16: 2015.440644 | L16: 0 | M16: -2015.440644 | N16: -95740.50287 | O16: =IF(M17<0,0,IF(N16<0,IF(-N16>SUM($O$5:O15),-N16-SUM($O$5:O15),0),0)) -> 0
A17: 12 | B17: =coeficientes!$B$15 -> 0.1 | C17: =coeficientes!$F$15 -> 5 | D17: =coeficientes!$E$15 -> 1.67 | G17: =coeficientes!$B$22 -> 1164.112983 | H17: =precios!$B$7 -> 0 | I17: =B17*precios!$B$3+C17*precios!$B$4+D17*precios!$B$5+E17*precios!$B$6+F17+G17+H17 -> 1817.012983 | J17: =coeficientes!$B$23*modelo!$I$31/26 -> 198.4276614 | K17: 2015.440644 | L17: 0 | M17: -2015.440644 | N17: -97755.94351 | O17: =IF(M18<0,0,IF(N17<0,IF(-N17>SUM($O$5:O16),-N17-SUM($O$5:O16),0),0)) -> 0
A18: 13 | B18: =coeficientes!$B$15 -> 0.1 | C18: =coeficientes!$F$15 -> 5 | D18: =coeficientes!$E$15 -> 1.67 | G18: =coeficientes!$B$22 -> 1164.112983 | H18: =precios!$B$7 -> 0 | I18: =B18*precios!$B$3+C18*precios!$B$4+D18*precios!$B$5+E18*precios!$B$6+F18+G18+H18 -> 1817.012983 | J18: =coeficientes!$B$23*modelo!$I$31/26 -> 198.4276614 | K18: 2015.440644 | L18: 0 | M18: -2015.440644 | N18: -99771.38416 | O18: =IF(M19<0,0,IF(N18<0,IF(-N18>SUM($O$5:O17),-N18-SUM($O$5:O17),0),0)) -> 0
A19: 14 | B19: =coeficientes!$B$15 -> 0.1 | C19: =coeficientes!$F$15 -> 5 | D19: =coeficientes!$E$15 -> 1.67 | G19: =coeficientes!$B$22 -> 1164.112983 | H19: =precios!$B$7 -> 0 | I19: =B19*precios!$B$3+C19*precios!$B$4+D19*precios!$B$5+E19*precios!$B$6+F19+G19+H19 -> 1817.012983 | J19: =coeficientes!$B$23*modelo!$I$31/26 -> 198.4276614 | K19: 2015.440644 | L19: 0 | M19: -2015.440644 | N19: -101786.8248 | O19: =IF(M20<0,0,IF(N19<0,IF(-N19>SUM($O$5:O18),-N19-SUM($O$5:O18),0),0)) -> 0
A20: 15 | B20: =coeficientes!$B$15 -> 0.1 | C20: =coeficientes!$F$15 -> 5 | D20: =coeficientes!$E$15 -> 1.67 | G20: =coeficientes!$B$22 -> 1164.112983 | H20: =precios!$B$7 -> 0 | I20: =B20*precios!$B$3+C20*precios!$B$4+D20*precios!$B$5+E20*precios!$B$6+F20+G20+H20 -> 1817.012983 | J20: =coeficientes!$B$23*modelo!$I$31/26 -> 198.4276614 | K20: 2015.440644 | L20: 0 | M20: -2015.440644 | N20: -103802.2654 | O20: =IF(M21<0,0,IF(N20<0,IF(-N20>SUM($O$5:O19),-N20-SUM($O$5:O19),0),0)) -> 0
A21: 16 | B21: =coeficientes!$B$15 -> 0.1 | C21: =coeficientes!$F$15 -> 5 | D21: =coeficientes!$E$15 -> 1.67 | G21: =coeficientes!$B$22 -> 1164.112983 | H21: =precios!$B$7 -> 0 | I21: =B21*precios!$B$3+C21*precios!$B$4+D21*precios!$B$5+E21*precios!$B$6+F21+G21+H21 -> 1817.012983 | J21: =coeficientes!$B$23*modelo!$I$31/26 -> 198.4276614 | K21: 2015.440644 | L21: 0 | M21: -2015.440644 | N21: -105817.7061 | O21: =IF(M22<0,0,IF(N21<0,IF(-N21>SUM($O$5:O20),-N21-SUM($O$5:O20),0),0)) -> 0
A22: 17 | B22: =coeficientes!$B$15 -> 0.1 | C22: =coeficientes!$F$15 -> 5 | D22: =coeficientes!$E$15 -> 1.67 | G22: =coeficientes!$B$22 -> 1164.112983 | H22: =precios!$B$7 -> 0 | I22: =B22*precios!$B$3+C22*precios!$B$4+D22*precios!$B$5+E22*precios!$B$6+F22+G22+H22 -> 1817.012983 | J22: =coeficientes!$B$23*modelo!$I$31/26 -> 198.4276614 | K22: 2015.440644 | L22: 0 | M22: -2015.440644 | N22: -107833.1467 | O22: =IF(M23<0,0,IF(N22<0,IF(-N22>SUM($O$5:O21),-N22-SUM($O$5:O21),0),0)) -> 107833.1467
A23: 18 | B23: =coeficientes!$B$15 -> 0.1 | C23: =coeficientes!$F$15 -> 5 | D23: =coeficientes!$E$15 -> 1.67 | G23: =coeficientes!$B$22 -> 1164.112983 | H23: =precios!$B$7 -> 0 | I23: =B23*precios!$B$3+C23*precios!$B$4+D23*precios!$B$5+E23*precios!$B$6+F23+G23+H23 -> 1817.012983 | J23: =coeficientes!$B$23*modelo!$I$31/26 -> 198.4276614 | K23: 2015.440644 | L23: =coeficientes!$B$20*precios!$B$13 -> 54679.84533 | M23: 52664.40469 | N23: -55168.74205 | O23: =IF(M24<0,0,IF(N23<0,IF(-N23>SUM($O$5:O22),-N23-SUM($O$5:O22),0),0)) -> 0
A24: 19 | B24: =coeficientes!$B$15 -> 0.1 | C24: =coeficientes!$F$15 -> 5 | D24: =coeficientes!$E$15 -> 1.67 | G24: =coeficientes!$B$22 -> 1164.112983 | H24: =precios!$B$7 -> 0 | I24: =B24*precios!$B$3+C24*precios!$B$4+D24*precios!$B$5+E24*precios!$B$6+F24+G24+H24 -> 1817.012983 | J24: =coeficientes!$B$23*modelo!$I$31/26 -> 198.4276614 | K24: 2015.440644 | L24: 0 | M24: -2015.440644 | N24: -57184.18269 | O24: =IF(M25<0,0,IF(N24<0,IF(-N24>SUM($O$5:O23),-N24-SUM($O$5:O23),0),0)) -> 0
A25: 20 | B25: =coeficientes!$B$15 -> 0.1 | C25: =coeficientes!$F$15 -> 5 | D25: =coeficientes!$E$15 -> 1.67 | G25: =coeficientes!$B$22 -> 1164.112983 | H25: =precios!$B$7 -> 0 | I25: =B25*precios!$B$3+C25*precios!$B$4+D25*precios!$B$5+E25*precios!$B$6+F25+G25+H25 -> 1817.012983 | J25: =coeficientes!$B$23*modelo!$I$31/26 -> 198.4276614 | K25: 2015.440644 | L25: 0 | M25: -2015.440644 | N25: -59199.62334 | O25: =IF(M26<0,0,IF(N25<0,IF(-N25>SUM($O$5:O24),-N25-SUM($O$5:O24),0),0)) -> 0
A26: 21 | B26: =coeficientes!$B$15 -> 0.1 | C26: =coeficientes!$F$15 -> 5 | D26: =coeficientes!$E$15 -> 1.67 | G26: =coeficientes!$B$22 -> 1164.112983 | H26: =precios!$B$7 -> 0 | I26: =B26*precios!$B$3+C26*precios!$B$4+D26*precios!$B$5+E26*precios!$B$6+F26+G26+H26 -> 1817.012983 | J26: =coeficientes!$B$23*modelo!$I$31/26 -> 198.4276614 | K26: 2015.440644 | L26: 0 | M26: -2015.440644 | N26: -61215.06398 | O26: =IF(M27<0,0,IF(N26<0,IF(-N26>SUM($O$5:O25),-N26-SUM($O$5:O25),0),0)) -> 0
A27: 22 | B27: =coeficientes!$B$15 -> 0.1 | C27: =coeficientes!$F$15 -> 5 | D27: =coeficientes!$E$15 -> 1.67 | G27: =coeficientes!$B$22 -> 1164.112983 | H27: =precios!$B$7 -> 0 | I27: =B27*precios!$B$3+C27*precios!$B$4+D27*precios!$B$5+E27*precios!$B$6+F27+G27+H27 -> 1817.012983 | J27: =coeficientes!$B$23*modelo!$I$31/26 -> 198.4276614 | K27: 2015.440644 | L27: 0 | M27: -2015.440644 | N27: -63230.50462 | O27: =IF(M28<0,0,IF(N27<0,IF(-N27>SUM($O$5:O26),-N27-SUM($O$5:O26),0),0)) -> 0
A28: 23 | B28: =coeficientes!$B$15 -> 0.1 | C28: =coeficientes!$F$15 -> 5 | D28: =coeficientes!$E$15 -> 1.67 | G28: =coeficientes!$B$22 -> 1164.112983 | H28: =precios!$B$7 -> 0 | I28: =B28*precios!$B$3+C28*precios!$B$4+D28*precios!$B$5+E28*precios!$B$6+F28+G28+H28 -> 1817.012983 | J28: =coeficientes!$B$23*modelo!$I$31/26 -> 198.4276614 | K28: 2015.440644 | L28: 0 | M28: -2015.440644 | N28: -65245.94527 | O28: =IF(M29<0,0,IF(N28<0,IF(-N28>SUM($O$5:O27),-N28-SUM($O$5:O27),0),0)) -> 0
A29: 24 | B29: =coeficientes!$B$15 -> 0.1 | C29: =coeficientes!$F$15 -> 5 | D29: =coeficientes!$E$15 -> 1.67 | G29: =coeficientes!$B$22 -> 1164.112983 | H29: =precios!$B$7 -> 0 | I29: =B29*precios!$B$3+C29*precios!$B$4+D29*precios!$B$5+E29*precios!$B$6+F29+G29+H29 -> 1817.012983 | J29: =coeficientes!$B$23*modelo!$I$31/26 -> 198.4276614 | K29: 2015.440644 | L29: 0 | M29: -2015.440644 | N29: -67261.38591 | O29: =IF(M30<0,0,IF(N29<0,IF(-N29>SUM($O$5:O28),-N29-SUM($O$5:O28),0),0)) -> 0
A30: 25 | B30: =coeficientes!$B$15 -> 0.1 | C30: =coeficientes!$F$15 -> 5 | D30: =coeficientes!$E$15 -> 1.67 | G30: =coeficientes!$B$22 -> 1164.112983 | H30: =precios!$B$7 -> 0 | I30: =B30*precios!$B$3+C30*precios!$B$4+D30*precios!$B$5+E30*precios!$B$6+F30+G30+H30 -> 1817.012983 | J30: =coeficientes!$B$23*modelo!$I$31/26 -> 198.4276614 | K30: 2015.440644 | L30: =coeficientes!$B$21*precios!$B$15 -> 243021.5348 | M30: 241006.0942 | N30: 173744.7082
I31: =SUM($I$5:$I$17) -> 103182.3839 | J31: =SUM(J5:J30) -> 5403.119196
A33: Referencias:
A34: JEQ | B34: Jornal equivalente: cantidad de jornales (categoría testigo peón gral. s/res. CNTA)
A35: GO | B35: Litros de gasoil equivalente: cantidad de litros de gasoil tipo 2 precio final en comercializadora seleccionada
A36: HMEQ | B36: Horas máquina equivalente: cantidad de horas de uso de tractor tipo chico con implementos
A37: PLANT | B37: Material de plantación: cantidad de plantines
A38: AGROQ | B38: Agroquímicos: gasto en $ en productos químicos varios
A39: AMORT | B39: Amortizaciones: amortizaciones de bienes durables en $
A40: IMP | B40: Impuestos específicos en $
A41: Subtotal | B41: Suma de todos los egresos sustantivos del año ($), exceptuando gastos de administración
A42: Admin | B42: Gastos de administración en $, incluye asistencia técnica profesional
A43: Egresos | B43: Suma de todos los egresos del año ($), incluyendo gastos de administración
A44: Ingresos | B44: Suma de todos los ingresos del año ($)
A45: FF | B45: Flujo de fondos neto del año ($)
A46: FF acum. | B46: Flujo de fondos neto acumulado hasta el año ($)

Sheet coeficientes
A1: Coeficientes técnicos
A3: Tareas | B3: JEQ | C3: PLANT | D3: AGROQ | E3: HMEQ | F3: GO
A4: Flete plantines / unidad | F4: 0.07
A5: Manipulación plantines / unidad | B5: 0.25
A6: Preparación suelo | B6: 0.33 | E6: 3.67 | F6: 11
A7: Plantación | B7: 5
A8: Riego asiento | B8: 0.25 | E8: 2 | F8: 6
A9: Control hormiga | B9: 0.25
A10: Control hormiga año 0 | D10: =0.01*precios!B11 -> 73.9998
A11: Control hormiga año 1 | D11: =0.5*precios!B12 -> 421.155
A12: Reposición | B12: 0.5
A13: Desmalezado manual | B13: 4
A14: Desmalezado tractor | B14: 0.45 | E14: 10 | F14: 30
A15: Elaboración calles | B15: 0.1 | E15: 1.67 | F15: 5
A16: Poda 1 | B16: 2
A17: Control rebrotes | B17: 0.25
A18: Poda 2 | B18: 3
A19: Raleo 1 | B19: 2.75
A20: Rendim. raleo 2 total en pie | B20: 18 | C20: t | D20: (8m3 leña + 10m3 rollo)
A21: Rendim. corta final total en pie | B21: =RENDIMIENTO -> 60 | C21: t | D21: (25m3 leña + 35m3 rollo)
A22: Amortizaciones | B22: =-PMT(tasa,5,precios!$B$8)/100 -> 1164.112983
A23: Administración | B23: 0.05 | C23: % subtotal
A25: Observaciones
A26: Amortizaciones | B26: Amortización anual prorrateado por ha de un tractor chico a media vida útil cada 100 ha, a la tasa de interés indicada, con vida útil remanente de 30 años, más amortizaciones menores: implementos, motosierras, etc. El precio de la maquinaria se actualiza proporcionalmente con el tipo de cambio, y asimismo las amortizaciones.
A27: Administración | B27: Se aplica una tasa fija sobre el subtotal de toda la serie, y se prorratea en anualidades iguales.
A28: HMEQ | B28: Hora Máquina Equivalente: incluye mantenimiento y reparaciones ordinarias. Las amortizaciones se computan independientemente, según se indica arriba.
A29: AGROQ | B29: Gasto en agroquímicos y otros: Valores en $ resultantes de aplicar las cantidades técnicamente especificadas por el precio vigente, que se actualiza proporcionalmente con el tipo de cambio.
A30: JEQ | B30: Jornal equivalente
A31: GO | B31: Litros de gasoil equivalente: Todos los consumos de diferentes combustibles y lubricantes se expresan como litros de gasoil equivalentes, según la relación de precios vigente al año base, 2020.

Sheet precios
A1: Precios
C2: Unidad | D2: Fuente | E2: Fecha | F2: Observaciones
A3: JEQ | B3: =PJEQ -> 1759 | C3: $/día | D3: Mesa Forestal Chaco | E3: 2020-08-01 | F3: vigente CNTA 2021
A4: GO | B4: =PGO -> 62 | C4: $/l | D4: Mesa Forestal Chaco | E4: 2020-11-01
A5: HMEQ | B5: =PHMEQ -> 100 | C5: $/h | D5: Mesa Forestal Chaco | E5: 2020-11-01 | F5: incluye mantenimiento y reparaciones ordinarias
A6: PLANT | B6: =PPLANT -> 34.28489153 | C6: $/plantín | D6: Mesa Forestal Chaco | E6: 2020-08-01 | F6: Incluye flete. Con subsidio provincial, el flete no cuenta (IIFA).
A7: Impuestos específicos netos de subsidios | B7: 0 | C7: $/ha/año | D7: Mesa Forestal Chaco | E7: 2020-11-01
A8: Tractor media vida útil (más motosierra, implementos, etc.) | B8: =8000*TCN -> 504000 | C8: $ | D8: Mesa Forestal Chaco | E8: 2020-11-01
A9: Plantín algarrobo Chaco | B9: 30 | C9: $/plantín puesto en vivero | D9: Mesa Forestal Chaco | E9: 2020-08-01 | F9: Con subsidio provincial pasa a $20, y hay precios diferenciales hasta $39
A10: Subsidio provincial al plantín | B10: 15 | C10: $/plantín | D10: Mesa Forestal Chaco | E10: 2020-08-01
A11: Fipronil | B11: =117.46*TCN -> 7399.98 | C11: $/l | D11: Mesa Forestal Chaco | E11: 2020-11-01
A12: Cebo Formidor bayer Mirex | B12: =13.37*TCN -> 842.31 | C12: $/kg | D12: Mesa Forestal Chaco | E12: 2020-11-01
A13: Madera en pie (raleo 2) | B13: =0.75*$B$15 -> 3037.769185 | C13: $/t | D13: Mesa Forestal Chaco | E13: 2020-08-01
A14: Madera en campo (raleo 2) | B14: 3220 | C14: $/t | D14: Mesa Forestal Chaco | E14: 2020-08-01
A15: Madera en pie (final) | B15: =PMAD -> 4050.358913 | C15: $/t | D15: Mesa Forestal Chaco | E15: 2020-08-01
A16: Leña | B16: 1380 | C16: $/t | D16: Mesa Forestal Chaco | E16: 2020-11-01
A17: Asistencia técnica plan forestal | B17: =244+0.12*ANR!$B$4 -> 244 | C17: $/ha | D17: Consejo Prof. Cs. For. Chaco + res. costos Ley 25080 año 2020 | E17: 2020-07-01 | F17: 12% monto del proyecto presentado + $244/ha
A18: Asistencia técnica poda 1 | B18: =0.12*ANR!$B$6 -> 0 | C18: $/ha | D18: Consejo Prof. Cs. For. Chaco + res. costos Ley 25080 año 2020 | E18: 2020-07-01 | F18: 12% monto de poda 1
A19: Asistencia técnica poda 2 | B19: =0.12*ANR!$B$7 -> 0 | C19: $/ha | D19: Consejo Prof. Cs. For. Chaco + res. costos Ley 25080 año 2020 | E19: 2020-07-01 | F19: 12% monto de poda 2
A20: Asistencia técnica raleo | B20: =0.12*ANR!$B$5 -> 0 | C20: $/ha | D20: Consejo Prof. Cs. For. Chaco + res. costos Ley 25080 año 2020 | E20: 2020-07-01 | F20: 12% monto de raleo

Sheet ANR
A1: Instrumentos de apoyo específicos sectoriales
B3: AENR a imputar | C3: monto AENR | D3: Normativa | E3: Observaciones
A4: Implantación, cobro al año 3 | B4: =IF(Tablero!$B$9="SÍ",ANR!C4,0) -> 0 | C4: 75589 | D4: Res. 116/20 | E4: plantando hasta 20 ha/año
A5: Raleo del año 10, cobro al año 11 | B5: =IF(Tablero!$B$9="SÍ",ANR!C5,0) -> 0 | C5: 6677 | D5: Res. 116/20
A6: Poda del año 4, cobro al año 5 | B6: =IF(Tablero!$B$9="SÍ",ANR!C6,0) -> 0 | C6: 6210 | D6: Res. 116/20
A7: Poda del año 8, cobro al año 9 | B7: =IF(Tablero!$B$9="SÍ",ANR!C7,0) -> 0 | C7: 8372 | D7: Res. 116/20
A10: Referencias:
A11: AENR | B11: Apoyo económico no reintegrable
